Cogmind - Beta 13 @@@ ROGUE MODE // 2024.05.17 @ 03:24:04 Player: Skrub Result: Destroyed by D-53 Grenadier with Mini Grenade Launcher Performance ------------- Evolutions (0) 0 Regions Visited (4) 800 Robots Destroyed (30) 150 Value Destroyed (504) 504 Prototype IDs (24) 480 Alien Tech Used (0) 0 Bonus (321) 321 TOTAL SCORE: 2255 Bonus ------- Follower Combat Kills 21 Aligned with FarCom 300 Cogmind --------- Core Integrity 0/250 Matter 300/300 Energy 95/100 System Corruption 1% Temperature Cool (0) Movement Treading (160) Location -9/Mines Parts ------- > --- POWER (1) -------- (None) > --- PROPULSION (2) --- Light Treads > --- UTILITY (2) ------ Small Storage Unit Transport Network Coupler > --- WEAPON (2) ------- Longsword +1 > --- INVENTORY (8) ---- Heat Sink High-capacity Matter Pod (200) Improved Terrain Scanner Medium Laser Medium Laser Datajack Peak State ------------ > --- POWER ------------ Makeshift Power Source > --- PROPULSION ------- Light Treads Light Treads > --- UTILITY ---------- Small Storage Unit Experimental Sensor Array > --- WEAPON ----------- Particle Gun Longsword +1 > --- INVENTORY -------- Light Treads Heat Sink Medium Matter Pod Improved Terrain Scanner Transport Network Coupler Medium Laser Medium Laser Datajack [Rating: 27] Favorites ----------- Power Ion Engine Engine Ion Engine Propulsion Light Treads Treads Light Treads Utility Small Storage Unit Device Heat Sink Storage Small Storage Unit Processor Transport Network Coupler Weapon Medium Laser Energy Gun Medium Laser Slashing Weapon Longsword +1 Build | -11 -10 -10 -10 -9 ------- Run | Yrd Mat Min Exi Min Slots Evolved . | . . . . . Power . | . . . . . Propulsion . | . . . . . Utility . | . . . . . Weapon . | . . . . . Parts Attached 19 | 5 8 3 1 2 Power 3 | 1 1 1 . . Engine 3 | 1 1 1 . . Core . | . . . . . Reactor . | . . . . . Propulsion 5 | 2 2 . . 1 Treads 5 | 2 2 . . 1 Leg . | . . . . . Wheel . | . . . . . Hover . | . . . . . Flight . | . . . . . Utility 6 | 1 2 2 . 1 Device 4 | . 2 2 . . Storage 1 | 1 . . . . Processor 1 | . . . . 1 Hackware . | . . . . . Protection . | . . . . . Artifact . | . . . . . Weapon 5 | 1 3 . 1 . Energy Gun 4 | 1 3 . . . Energy Cannon . | . . . . . Ballistic Gun . | . . . . . Ballistic Cannon . | . . . . . Launcher . | . . . . . Special Weapon . | . . . . . Impact Weapon . | . . . . . Slashing Weapon 1 | . . . 1 . Piercing Weapon . | . . . . . Special Melee Weapon . | . . . . . Unidentified Prototypes 1 | . . 1 . . Parts Lost 4 | . 1 . . 3 Power 2 | . 1 . . 1 Propulsion 2 | . . . . 2 Utility . | . . . . . Weapon . | . . . . . Highest Loss Streak 2 | . 1 . . 2 To Critical Strikes . | . . . . . Average Slot Usage (%) 98 | . 98 99 100 76 Engine 13 | . 13 14 14 14 Treads 27 | . 27 28 28 16 Device 13 | . 13 13 14 7 Storage 14 | . 14 14 14 14 Energy Gun 24 | . 28 28 18 3 Slashing Weapon 3 | . . . 9 14 Naked Turns . | . . . . . Heaviest Build 16 | 12 16 16 16 16 Greatest Support 40 | 40 40 40 40 40 Greatest Overweight (x) . | . . . . . Average Overweight (x) . | . . . . . Largest Inventory Capacity 8 | 8 8 8 8 8 Average Capacity 7 | 7 8 8 8 8 Most Carried 8 | 4 8 8 8 8 Average Carried 5 | 2 3 7 7 7 Final Capacity 8 | 8 8 8 8 8 Final Carried 8 | 3 8 8 8 6 Class Distribution -------------------- 97% | Mutant Dominant Class ---------------- Mutant | -10/Materials Mutant | -10/Mines Mutant | -10/Exiles Assassin | -9/Mines Resources | -11 -10 -10 -10 -9 ----------- Run | Yrd Mat Min Exi Min Matter Collected 569 | 250 80 111 118 10 Remotely . | . . . . . Salvage Created 793 | 160 550 40 . 43 Parts 51 | 17 22 5 . 7 Haulers Intercepted 2 | . 2 . . . Recyclers Shooed . | . . . . . Parts Field Recycled . | . . . . . Retrieved Matter . | . . . . . Parts Self-Destructed . | . . . . . Prevented . | . . . . . Kills | -11 -10 -10 -10 -9 ------- Run | Yrd Mat Min Exi Min Combat Hostiles Destroyed 19 | . 12 3 . 4 Melee 1 | . . . . 1 Guns 16 | . 10 3 . 3 Classes Destroyed 7 | 3 4 . . . Worker 2 | 1 1 . . . Tunneler 4 | 4 . . . . Hauler 2 | . 2 . . . Recycler 1 | 1 . . . . Watcher 2 | . 2 . . . Swarmer 10 | . 3 3 . 4 Grunt 9 | . 9 . . . Best Kill Streak 4 | 3 3 3 . 4 Combat Bots Only 4 | . 3 3 . 4 Max Kills in Single Turn 2 | 1 2 1 . 1 Gunslinging 1 | . 1 . . . Exploded . | . . . . . Melee 1 | . . . . 1 Uniques/NPCs Destroyed . | . . . . . Combat | -11 -10 -10 -10 -9 -------- Run | Yrd Mat Min Exi Min Hostile Shots Fired 117 | . 51 16 . 50 Missed 33 | . 18 7 . 8 Damage Taken 979 | . 393 67 . 519 Core 255 | . 90 6 . 159 Absorbed by Shields . | . . . . . Core Remaining (%) 100 | 100 . . . . Volleys Fired 98 | 27 54 4 . 13 Largest 2 | 1 2 2 . 1 Hottest 115 | 50 115 115 . 65 Shots Fired 158 | 27 109 9 . 13 Gun 158 | 27 109 9 . 13 Cannon . | . . . . . Launcher . | . . . . . Special . | . . . . . Kinetic . | . . . . . Thermal 158 | 27 109 9 . 13 Explosive . | . . . . . Electromagnetic . | . . . . . Robot Hit Streak 17 | 3 17 6 . 3 Robot Miss Streak 4 | 4 3 2 . 2 Penetration Max . | . . . . . Secondary Targets 3 | . 2 1 . . Max Gunslinging Chain 1 | . 1 1 . . Shots Hit Robots 106 | 14 81 3 . 8 Core Hits 39 | 7 25 3 . 4 Critical Kills . | . . . . . Critical Parts Destroyed . | . . . . . Critical Strikes 7 | 2 5 . . . Burn 7 | 2 5 . . . Melee Attacks 2 | . . . . 2 Impact . | . . . . . Slashing 2 | . . . . 2 Piercing . | . . . . . Sneak Attacks . | . . . . . Combat Hostiles . | . . . . . Follow-up Attacks . | . . . . . Damage Inflicted 1517 | 189 1015 54 . 259 Guns 1408 | 189 1015 54 . 150 Cannons . | . . . . . Explosions . | . . . . . Melee 109 | . . . . 109 Ramming . | . . . . . Kinetic . | . . . . . Thermal 1408 | 189 1015 54 . 150 Explosive . | . . . . . Electromagnetic . | . . . . . Impact . | . . . . . Slashing 109 | . . . . 109 Piercing . | . . . . . Highest Corruption 1 | . 1 1 1 1 Average Corruption 1 | . 1 1 1 1 Corruption Purged . | . . . . . Corruption Blocked . | . . . . . Effects 12 | . 8 3 1 . Message Errors 5 | . 3 1 1 . Matter Fused 4 | . 3 1 . . Heat Flow Errors 1 | . 1 . . . Misfires 2 | . 1 1 . . Overload Shots . | . . . . . Overflow Damage 9 | . . . . 9 Projectiles . | . . . . . Explosions . | . . . . . Melee 9 | . . . . 9 Knockbacks . | . . . . . Impact . | . . . . . Kinetic . | . . . . . Secondary . | . . . . . Self-Inflicted Damage . | . . . . . Shots . | . . . . . Rammed . | . . . . . Targets Rammed . | . . . . . Kicked . | . . . . . Crushed . | . . . . . Highest Temperature 354 | 70 187 96 . 354 Average Temperature 59 | 26 24 43 . 181 Received Heat Transfer 204 | . 204 . . . Effects 1 | . . . . 1 Shutdowns 1 | . . . . 1 Siege Activations . | . . . . . Robots Corrupted . | . . . . . Combat Hostiles . | . . . . . Parts Fried 2 | . 2 . . . Impact Corruptions . | . . . . . Robots Melted 2 | . 2 . . . Combat Hostiles 2 | . 2 . . . Parts Melted 10 | . 8 . . 2 Heat Transferred 4252 | 703 3068 148 . 333 Parts Sabotaged . | . . . . . Parts Stolen . | . . . . . Parts Stripped . | . . . . . Power Chain Reactions . | . . . . . Alert | -11 -10 -10 -10 -9 ------- Run | Yrd Mat Min Exi Min Peak Influence 203 | 30 203 92 . 95 Initial 22 | . 19 22 . . Average 67 | 13 66 80 . 83 Maximum Alert Level 1 | . 1 . . . Low Security (%) 97 | 100 95 100 . 100 Level 1 2 | . 4 . . . Level 2 . | . . . . . Level 3 . | . . . . . Level 4 . | . . . . . Level 5 . | . . . . . High Security . | . . . . . Max Security . | . . . . . Squads Dispatched 3 | . 3 . . . Investigation 1 | . 1 . . . Extermination . | . . . . . Reinforcement 2 | . 2 . . . Assault . | . . . . . Garrison . | . . . . . Intercept . | . . . . . Searches Triggered . | . . . . . Construction Impeded . | . . . . . Haulers Reinforced . | . . . . . Active Scanning Responses . | . . . . . Cargo Convoy Interrupts . | . . . . . Stealth | -11 -10 -10 -10 -9 --------- Run | Yrd Mat Min Exi Min Distress Signals . | . . . . . Communications Jammed . | . . . . . Distress Signals . | . . . . . Times Spotted 38 | . 20 6 . 12 Peak Tracking Total 7 | . 4 3 . 7 Tactical Retreats 2 | . 1 1 . . Traps | -11 -10 -10 -10 -9 ------- Run | Yrd Mat Min Exi Min Traps Triggered 3 | . 3 . . . Indirectly . | . . . . . Trap Hack Attempts . | . . . . . Triggered . | . . . . . Disarmed . | . . . . . Reprogrammed 5 | . 5 . . . Reused 1 | . 1 . . . Traps Extracted . | . . . . . Installed . | . . . . . Triggered 1 | . 1 . . . Machines | -11 -10 -10 -10 -9 ---------- Run | Yrd Mat Min Exi Min Machines Disabled . | . . . . . Max in Single Turn . | . . . . . Machines Repaired . | . . . . . Machines Dismantled . | . . . . . Machines Sabotaged . | . . . . . Overloaded Fab Kills . | . . . . . Hacking | -11 -10 -10 -10 -9 --------- Run | Yrd Mat Min Exi Min Machines Accessed 7 | . 6 . 1 . Terminals 5 | . 5 . . . Fabricators . | . . . . . Repair Stations . | . . . . . Recycling Units 1 | . 1 . . . Scanalyzers . | . . . . . Garrison Access . | . . . . . Total Hacks 18 | . 17 . 1 . Successful 10 | . 9 . 1 . Failed 8 | . 8 . . . Catastrophic 2 | . 2 . . . Database Lockouts . | . . . . . Manual 18 | . 17 . 1 . Terminals 14 | . 14 . . . Fabricators . | . . . . . Repair Stations . | . . . . . Recycling Units 3 | . 3 . . . Scanalyzers . | . . . . . Garrison Access . | . . . . . Terminal Hacks 3 | . 2 . 1 . Reprogram Traps 2 | . 2 . . . Derelict Proto ID Bank 1 | . . . 1 . Fabricator Hacks . | . . . . . Repair Station Hacks . | . . . . . Recycling Unit Hacks . | . . . . . Scanalyzer . | . . . . . Garrison Access Hacks . | . . . . . Unauthorized Hacks 7 | . 7 . . . Terminals 5 | . 5 . . . Assimilate 1 | . 1 . . . Botnet 4 | . 4 . . . Fabricators . | . . . . . Repair Stations . | . . . . . Recycling Units 2 | . 2 . . . Reject 1 | . 1 . . . Recyclers 1 | . 1 . . . Scanalyzers . | . . . . . Garrison Access . | . . . . . Data Cores Recovered . | . . . . . Used . | . . . . . Hacking Detections 5 | . 5 . . . Full Trace Events 1 | . 1 . . . Feedback Events . | . . . . . Feedback Blocked . | . . . . . Robot Schematics Acquired . | . . . . . Robots Built . | . . . . . Authchips . | . . . . . Time . | . . . . . Total Robot Build Rating . | . . . . . Part Schematics Acquired . | . . . . . Parts Built . | . . . . . Authchips . | . . . . . Time . | . . . . . Total Part Build Rating . | . . . . . Parts Repaired . | . . . . . Time . | . . . . . Parts Recycled . | . . . . . Recycled Matter . | . . . . . Retrieved Matter . | . . . . . Retrieved Components . | . . . . . Parts Scanalyzed . | . . . . . Part Schematics Acquired . | . . . . . Parts Damaged . | . . . . . Bothacking | -11 -10 -10 -10 -9 ------------ Run | Yrd Mat Min Exi Min Used RIF Installer . | . . . . . Robots Hacked . | . . . . . Non-combat . | . . . . . Combat . | . . . . . Robot Hacks Applied . | . . . . . Relay Couplers Released . | . . . . . Fabnet Peak Effective % . | . . . . . Robots Rewired . | . . . . . Allies Hacked . | . . . . . Hacks Repelled . | . . . . . Allies | -11 -10 -10 -10 -9 -------- Run | Yrd Mat Min Exi Min Total Allies 2 | . . 2 . . Largest Group 2 | . . 2 1 . Highest-Rated Group 45 | . . 45 31 . Highest-Rated Ally 31 | . . 31 31 . Total Orders . | . . . . . Ally Attacks 9 | . . 9 . . Total Damage 128 | . . 128 . . Kills 3 | . . 3 . . Allies Corrupted . | . . . . . Allies Melted . | . . . . . Intel | -11 -10 -10 -10 -9 ------- Run | Yrd Mat Min Exi Min Robot Analysis Total . | . . . . . Derelict Logs Recovered 2 | . . 2 . . Drone Launches . | . . . . . Drone Recoveries . | . . . . . Exploration | -11 -10 -10 -10 -9 ------------- Run | Yrd Mat Min Exi Min Turns Passed 2508 | 161 1090 514 615 128 Spaces Moved 1336 | 65 524 304 383 60 Core 8 | 8 . . . . Treads 1328 | 57 524 304 383 60 Legs . | . . . . . Wheels . | . . . . . Hover . | . . . . . Flight . | . . . . . Fastest Speed 50 | 50 160 160 160 160 Average Speed 159 | 146 160 160 160 160 Slowest Speed 160 | 160 160 160 160 160 Overloaded Moves . | . . . . . Propulsion Burnouts . | . . . . . Robots Hopped . | . . . . . Cave-ins Triggered . | . . . . . Exploration Rate (%) 48 | 5 81 53 87 16 Regions Visited 4 Branch Regions 3 Pre-discovered Areas 2 | . . 2 . . Known Exits Taken . | . . . . . Unknown Exits Taken 4 | 1 1 1 1 . Scrap Searched 2 | . . 1 . 1 Spaces Dug . | . . . . . Terrain Destroyed . | . . . . . Melee . | . . . . . Projectile . | . . . . . AOE . | . . . . . Terrain Rammed . | . . . . . Walls Destroyed . | . . . . . Machines Disabled . | . . . . . Actions | -11 -10 -10 -10 -9 --------- Run | Yrd Mat Min Exi Min Total 1562 | 104 668 325 386 79 Wait 79 | . 68 11 . . Move 1332 | 64 523 303 382 60 Hop . | . . . . . Pick Up 22 | 8 13 . 1 . Fast Attach 3 | . . 2 1 . Attach 13 | 5 6 . . 2 Detach 1 | . . 1 . . Swap 3 | . 2 1 . . Drop 9 | . 2 3 2 2 Fire 98 | 27 54 4 . 13 Melee 2 | . . . . 2 Ram . | . . . . . Kick . | . . . . . Crush . | . . . . . Escape Stasis . | . . . . . Rewire . | . . . . . Trap . | . . . . . Miscellaneous . | . . . . . Route ------- -11/Scrapyard -10/Materials (discovered 3 exits: [*Mat] / [*Min x2]) -10/Mines (discovered 2 exits: [*Mat] / *Exi) -10/Exiles -9/Mines History --------- Turn | Location | Event 6 | -11/Scrapyard | Discovered new exit (range 14) 162 | -11/Scrapyard | Entered Materials 311 | -10/Materials | Discovered new exit (range 6) 315 | -10/Materials | Build established: Mutant 632 | -10/Materials | Discovered new exit (range 10) 1092 | -10/Materials | Discovered new exit (range 13) 1252 | -10/Materials | Entered Mines 1570 | -10/Mines | Found a damaged Exp. Sensor Array with a note attached 1575 | -10/Mines | Found Prototype Device 1575 | -10/Mines | Identified Exp. Sensor Array 1605 | -10/Mines | Discovered new exit (range 7) 1650 | -10/Mines | Learned location of Zion (-7) 1691 | -10/Mines | Deemed a non-threat by the Exiles lab entrance 1760 | -10/Mines | Discovered new exit (range 5) 1766 | -10/Mines | Entered Exiles 1766 | -10/Exiles | Accompanied by 1 ally 1796 | -10/Exiles | Led the pair of lost Derelicts to a safe place 1803 | -10/Exiles | Met 8R-AWN 1832 | -10/Exiles | Met EX-HEX 1886 | -10/Exiles | Met EX-BIN 1906 | -10/Exiles | Aligned with FarCom system 1907 | -10/Exiles | Given EX-Vault access code 1944 | -10/Exiles | Opened EX-Vault 1954 | -10/Exiles | Found Longsword +1 1986 | -10/Exiles | Warned to stay clear of 0b10 Research branches 2036 | -10/Exiles | Met EX-DEC 2102 | -10/Exiles | Visited The Gauntlet 2354 | -10/Exiles | Discovered new exit (range 15) 2381 | -10/Exiles | Left Exiles lab with Longsword +1 2381 | -10/Exiles | Entered Mines 2393 | -9/Mines | Core integrity fell below 50% 2480 | -9/Mines | Assembled infested the area 2485 | -9/Mines | Assisted by a Guerilla fighting off Assembled 2503 | -9/Mines | Core integrity fell below 20% 2509 | -9/Mines | Destroyed by D-53 Grenadier with Mini Grenade Launcher Last Messages --------------- 02481_ K-01 Serf collects debris. 02485_ A derelict emerges from the shadows: "You need to get out of here! I've been tracking a group of Assembled to figure out where they're coming from, and they're closing on this area, come on!" 02488_ K-01 Serf collects debris. 02494_ FM-E4Y(h) destroyed. 02497_ K-01 Serf collects debris. 02502_ C-30 ARC bursts open, deploying its payload. 02502_ D-53 Grenadier unfolds itself. 02503_ Lgt. Treads destroyed. 02503_ as-48115 destroyed. 02504_ as-79114 destroyed. 02505_ as-58500 destroyed. 02505_ as-35577 destroyed. 02505_ as-25818 destroyed. 02508_ Mak. Power Source destroyed. 02508_ Destroyed Mni. Grenade Launcher. Map ----- +----------------------------------------------------+ | | | | | | | | | | | | | ?????????????????????????????????????????????????? | | ?????????????????????????????????????????????????? | | ?????????????????????????????????????????????????? | | ?????????############????????????????????????????? | | ?????????# #????????????????????????????? | | ????###### """ #????????????????????????????? | | ????# [=""" #????????????????????????????? | | ????# #### =[=%""" #????????????????????????????? | | ????# #??# %=%*%[ #????????????????????????????? | | ????# #??############????????????????????????????? | | ##### #### ##???????????????????????????????????? | | !%| ##??????????????????????????????????? | | ##### #??????????????????????????????????? | | #???# #??????????????????????????????????? | | """#???## ##??????#######?????????????????????? | | """#????### # ####?# #?????????????????????? | | """#??????# k# # ###???????????????????? | | #??????# #???????????????????? | | ####????### # #????????????????? | | ???????## @ d % #????????????????? | | ??????## d #????????????????? | | ??????# # ####????????????????? | | ?# ### a #???????????????????? | | # ##?# # #########???????????????????? | | # ???##= ## ????????????????????????????? | | ## #????#%]##?????????????????????????????? | | ?## ## ?????# "??????????????????????????????? | | ??###?## ?????# ??????????????????????????????? | | ???????# ?????#"##??????????????????????????????? | | ??????? ??????##????????????????????????????????? | | ???????# ????????????????????????????????????????? | | ???????# ????????????????????????????????????????? | | ?????????????????????????????????????????????????? | | ?????????????????????????????????????????????????? | | ?????????????????????????????????????????????????? | | ?????????????????????????????????????????????????? | | ?????????????????????????????????????????????????? | | ?????????????????????????????????????????????????? | | ?????????????????????????????????????????????????? | | ?????????????????????????????????????????????????? | | ?????????????????????????????????????????????????? | | ?????????????????????????????????????????????????? | | ?????????????????????????????????????????????????? | | ?????????????????????????????????????????????????? | +----------------------------------------------------+ Best States ------------- Heat Dissipation 35 Energy Generation 15 Energy Capacity 250 Matter Stores 300 Matter Capacity 300 Sight Range 16 Robot Scan Range 20 Terrain Scan Density 10 Evasion (%) 40 Recoil Reduction 2 Item Schematics ----------------- None Robot Schematics ------------------ None Fabricated ------------ Nothing Alien Tech Used ----------------- None Achievements -------------- None Challenges ------------ None Game ------ Seed MasterBiomechanicalCloak Manual? 0 Play Time 00:23:11 Cumulative 12.6 hours Start 2024.05.17 @ 03:02:57 End 2024.05.17 @ 03:24:04 Sessions 1 Manual Loads 0 Difficulty Rogue Special Mode None Game No. 17 Rogue 17 Adventurer 0 Explorer 0 Win Type - Total 0 Types 0/0/0/0/0/0/0/0/0 Lore% 14 Gallery% 18 Achievement% 19 Wizard Run 0 Options --------- Layout 1 ASCII 0 Keyboard 0 Movement Mouse Keybinds 0 Fullscreen 1 Font 24/Smallcaps Map View 50x35 Zoom Use 0% Tactical HUD 1 Map Filters NONE Filters NONE Steam 1 RUN: a2d34738-78e3-4c6a-b6c3-42cb2e0ee3de